lending/lending_fUSD_20250621
["ID","MTS","AMOUNT","RATE_DAILY","PERIOD"]
[366815055,1750469451285,-490.0,0.00026297,4]
[366815056,1750469451295,-490.0,0.00026297,4]
[366815057,1750469451305,-490.0,0.00026297,4]
[366815058,1750469451316,-1680.82,0.00026297,4]
[366815059,1750469451326,-490.0,0.00026297,4]
[366815060,1750469451336,-610.55,0.00026297,4]
[366815061,1750469451347,-490.0,0.00026297,4]
[366815062,1750469451357,-490.0,0.00026297,4]
[366815063,1750469451367,-490.0,0.00026297,4]
[366815064,1750469451377,-543.8,0.00026297,4]
[366815065,1750469451387,-490.0,0.00026297,4]
[366815066,1750469451397,-3805.85,0.00026297,4]
[366815067,1750469451407,-584.64815768,0.00026297,4]
[366815068,1750469451417,-490.0,0.00026297,4]
[366815069,1750469451428,-621.07,0.00026297,2]
[366815070,1750469451438,-490.0,0.00026297,4]
[366815071,1750469451448,-525.94159886,0.00026297,4]
[366815072,1750469451459,-490.0,0.00026297,4]
[366815073,1750469451470,-1068.62,0.00026297,4]
[366815074,1750469451480,-525.68,0.00026297,4]
[366815075,1750469451490,-490.0,0.00026297,4]
[366815076,1750469451500,-755.19,0.00026297,4]
[366815077,1750469451511,-490.0,0.00026297,4]
[366815078,1750469451521,-490.0,0.00026297,4]
[366815079,1750469451532,-490.0,0.00026297,4]
[366815080,1750469451543,-490.0,0.00026297,4]
[366815081,1750469451553,-669.03,0.00026297,4]
[366815082,1750469451563,-490.0,0.00026297,4]
[366815083,1750469451572,-490.0,0.00026297,4]
[366815084,1750469451582,-490.0,0.00026298,4]
[366815085,1750469451592,-490.0,0.00026298,4]
[366815086,1750469451602,-490.0,0.00026298,4]
[366815087,1750469451613,-490.0,0.00026298,4]
[366815088,1750469451623,-490.0,0.00026298,4]
[366815089,1750469451634,-490.0,0.00026298,4]
[366815090,1750469451644,-490.0,0.00026298,4]
[366815091,1750469451654,-586.57,0.00026298,4]
[366815092,1750469451665,-490.0,0.00026298,4]
[366815093,1750469451675,-490.0,0.00026298,4]
[366815094,1750469451685,-490.0,0.00026298,4]
[366815095,1750469451695,-490.0,0.00026298,4]
[366815096,1750469451705,-490.0,0.00026298,4]
[366815097,1750469451716,-490.0,0.00026299,4]
[366815098,1750469451726,-13482.81,0.000263,2]
[366815099,1750469451736,-168.0,0.00026334,2]
[366815100,1750469451747,-1236.4532289,0.00026348,14]
[366815101,1750469451757,-500.0,0.00026373,2]
[366815102,1750469451768,-3383.213,0.00026399,13]
[366815103,1750469451777,-178.805,0.00026399,13]
[366815104,1750469451788,-164.3,0.00026451,2]
[366815105,1750469451798,-207.974648,0.00026481,4]
[366815106,1750469451809,-889.418919,0.00026481,4]
[366815107,1750469451818,-561.441691,0.00026481,4]
[366815108,1750469451828,-207.974648,0.00026499,4]
[366815109,1750469451838,-889.418919,0.00026499,4]
[366815110,1750469451850,-561.441691,0.00026499,4]
[366815111,1750469451863,-1127.88,0.000265,2]
[366815112,1750469451875,-1000.0,0.00026505,2]
[366815113,1750469451885,-1830.0,0.00026517,2]
[366815114,1750469451895,-202154.14998269,0.00026518,2]
[366815115,1750469451906,-151.10157197,0.00026528,2]
[366815116,1750469451916,-2000.0,0.00026538,60]
[366815117,1750469451927,-500.0,0.00026538,120]
[366815118,1750469451937,-286.07054945,0.00026561,2]
[366815119,1750469451948,-490.0,0.00026571,4]
[366815120,1750469451958,-490.0,0.00026571,4]
[366815121,1750469451968,-490.0,0.00026571,4]
[366815122,1750469451977,-490.0,0.00026571,4]
[366815123,1750469451988,-490.0,0.00026571,4]
[366815124,1750469451998,-490.0,0.00026571,4]
[366815125,1750469452007,-407.83056748,0.00026571,4]
[366815126,1750469452018,-350.07318787,0.00026571,4]
[366815127,1750469452028,-490.0,0.00026571,4]
[366815128,1750469452038,-490.0,0.00026571,4]
[366815129,1750469452049,-490.0,0.00026571,4]
[366815130,1750469452059,-490.0,0.00026571,4]
[366815131,1750469452069,-490.0,0.00026571,4]
[366815132,1750469452079,-490.0,0.00026571,4]
[366815133,1750469452089,-490.0,0.00026571,4]
[366815134,1750469452100,-490.0,0.00026571,4]
[366815135,1750469452110,-490.0,0.00026571,4]
[366815136,1750469452119,-490.0,0.00026571,4]
[366815137,1750469452128,-490.0,0.00026571,4]
[366815138,1750469452138,-436.41347138,0.00026571,4]
[366815139,1750469452148,-490.0,0.00026571,4]
[366815140,1750469452158,-325.39555981,0.00026571,4]
[366815141,1750469452169,-490.0,0.00026571,4]
[366815142,1750469452179,-490.0,0.00026571,4]
[366815143,1750469452190,-490.0,0.00026571,4]
[366815144,1750469452200,-490.0,0.00026571,4]
[366815145,1750469452211,-490.0,0.00026571,4]
[366815146,1750469452221,-490.0,0.00026571,4]
[366815147,1750469452231,-812.69,0.00026571,4]
[366815148,1750469452241,-490.0,0.00026571,4]
[366815149,1750469452252,-490.0,0.00026571,4]
[366815150,1750469452263,-936.43,0.00026571,4]
[366815151,1750469452275,-490.0,0.00026571,4]
[366815152,1750469452285,-490.0,0.00026571,4]
[366815153,1750469452296,-543.41,0.00026571,4]
[366815154,1750469452306,-807.15,0.00026571,4]
[366815155,1750469452316,-2874.37,0.00026571,4]
[366815156,1750469452326,-747.94,0.00026571,4]
[366815157,1750469452337,-490.0,0.00026571,4]
[366815158,1750469452346,-490.0,0.00026571,4]
[366815159,1750469452356,-490.0,0.00026571,4]
[366815160,1750469452367,-490.0,0.00026571,4]
[366815161,1750469452378,-490.0,0.00026571,4]
[366815162,1750469452388,-490.0,0.00026571,4]
[366815163,1750469452399,-490.0,0.00026571,4]
[366815164,1750469452409,-490.0,0.00026571,4]
[366815165,1750469452420,-490.0,0.00026571,4]
[366815166,1750469452430,-490.0,0.00026571,4]
[366815167,1750469452441,-490.0,0.00026571,4]
[366815168,1750469452451,-1437.46,0.00026571,4]
[366815169,1750469452461,-490.0,0.00026571,4]
[366815170,1750469452472,-490.0,0.00026571,4]
[366815171,1750469452484,-712.82,0.00026571,4]
[366815172,1750469452495,-490.0,0.00026571,4]
[366815173,1750469452506,-576.17,0.00026571,4]
[366815174,1750469452517,-490.0,0.00026571,4]
[366815175,1750469452528,-526.92,0.00026571,4]
[366815176,1750469452539,-490.0,0.00026571,4]
[366815177,1750469452550,-490.0,0.00026571,4]
[366815178,1750469452560,-490.0,0.00026571,4]
[366815179,1750469452571,-465.48310768,0.00026571,4]
[366815180,1750469452581,-490.0,0.00026571,4]
[366815181,1750469452591,-490.0,0.00026571,4]
[366815182,1750469452601,-490.0,0.00026571,4]
[366815183,1750469452612,-365.27,0.00026571,4]
[366815184,1750469452622,-490.0,0.00026571,4]
[366815185,1750469452633,-490.0,0.00026571,4]
[366815186,1750469452644,-490.0,0.00026571,4]
[366815187,1750469452654,-490.0,0.00026571,4]
[366815188,1750469452665,-490.0,0.00026571,4]
[366815189,1750469452675,-591.78,0.00026571,4]
[366815190,1750469452684,-490.0,0.00026571,4]
[366815191,1750469452695,-490.0,0.00026571,4]
[366815192,1750469452705,-490.0,0.00026571,4]
[366815193,1750469452716,-490.0,0.00026571,4]
[366815194,1750469452727,-956.83,0.00026571,4]
[366815195,1750469452738,-318.12701622,0.00026571,4]
[366815196,1750469452748,-575.79,0.00026571,4]
[366815197,1750469452759,-490.0,0.00026571,4]
[366815198,1750469452768,-490.0,0.00026571,4]
[366815199,1750469452778,-490.0,0.00026571,4]
[366815200,1750469452788,-490.0,0.00026571,4]
[366815201,1750469452799,-490.0,0.00026571,4]
[366815202,1750469452809,-490.0,0.00026571,4]
[366815203,1750469452819,-490.0,0.00026571,4]
[366815204,1750469452830,-1272.16,0.00026571,2]
[366815205,1750469452841,-490.0,0.00026571,4]
[366815206,1750469452852,-490.0,0.00026571,4]
[366815207,1750469452866,-490.0,0.00026571,4]
[366815208,1750469452876,-490.0,0.00026571,4]
[366815209,1750469452886,-490.0,0.00026571,4]
[366815210,1750469452895,-490.0,0.00026571,4]
[366815211,1750469452906,-490.0,0.00026571,4]
[366815212,1750469452916,-547.86,0.00026571,4]
[366815213,1750469452926,-196.45299577,0.00026571,4]
[366815214,1750469452936,-490.0,0.00026571,4]
[366815215,1750469452947,-238.17770418,0.00026571,4]
[366815216,1750469452956,-490.0,0.00026571,4]
[366815217,1750469452966,-490.0,0.00026571,4]
[366815218,1750469452976,-490.0,0.00026571,4]
[366815219,1750469452986,-778.02,0.00026571,4]
[366815220,1750469452996,-490.0,0.00026571,4]
[366815221,1750469453006,-479.13494849,0.00026571,4]
[366815222,1750469453016,-295.22388415,0.00026571,4]
[366815223,1750469453026,-490.0,0.00026571,4]
[366815224,1750469453036,-1680.82,0.00026571,4]
[366815225,1750469453046,-212.19336298,0.00026571,4]
[366815226,1750469453056,-610.55,0.00026571,4]
[366815227,1750469453066,-490.0,0.00026571,4]
[366815228,1750469453077,-490.0,0.00026571,4]
[366815229,1750469453087,-490.0,0.00026571,4]
[366815230,1750469453096,-543.8,0.00026571,4]
[366815231,1750469453107,-490.0,0.00026571,4]
[366815232,1750469453117,-3805.85,0.00026571,4]
[366815233,1750469453128,-490.0,0.00026571,4]
[366815234,1750469453139,-621.07,0.00026571,2]
[366815235,1750469453150,-490.0,0.00026571,4]
[366815236,1750469453161,-490.0,0.00026571,4]
[366815237,1750469453171,-1068.62,0.00026571,4]
[366815238,1750469453182,-525.68,0.00026571,4]
[366815239,1750469453192,-490.0,0.00026571,4]
[366815240,1750469453202,-755.19,0.00026571,4]
[366815241,1750469453212,-490.0,0.00026571,4]
[366815242,1750469453223,-490.0,0.00026571,4]
[366815243,1750469453234,-490.0,0.00026571,4]
[366815244,1750469453246,-490.0,0.00026571,4]
[366815245,1750469453257,-669.03,0.00026571,4]
[366815246,1750469453267,-490.0,0.00026571,4]
[366815247,1750469453278,-490.0,0.00026571,4]
[366815248,1750469453288,-490.0,0.00026572,4]
[366815249,1750469453299,-490.0,0.00026572,4]
[366815250,1750469453309,-490.0,0.00026572,4]
[366815251,1750469453319,-490.0,0.00026572,4]
[366815252,1750469453330,-490.0,0.00026572,4]
[366815253,1750469453340,-490.0,0.00026572,4]
[366815254,1750469453351,-490.0,0.00026572,4]
[366815255,1750469453361,-586.57,0.00026572,4]
[366815256,1750469453371,-490.0,0.00026572,4]
[366815257,1750469453382,-535.5057978,0.00026572,4]
[366815258,1750469453393,-490.0,0.00026572,4]
[366815259,1750469453620,-490.0,0.00026572,4]
[366815260,1750469453632,-231.80786459,0.00026572,4]
[366815261,1750469453642,-490.0,0.00026573,4]
[366815262,1750469453652,-512.15385512,0.00026575,2]
[366815263,1750469453663,-1025.71347515,0.00026581,2]
[366815264,1750469453673,-1130.68505204,0.00026581,2]
[366815265,1750469453683,-1084.7572831,0.00026581,2]
[366815266,1750469453693,-1135.95914512,0.00026581,2]
[366815267,1750469453704,-1125.71158693,0.00026581,2]
[366815268,1750469453714,-67196.12,0.000266,7]
[366815269,1750469453725,-579.94557721,0.00026601,2]
[366815270,1750469453735,-1039.02828413,0.00026621,2]
[366815271,1750469453746,-1000.0,0.00026621,2]
[366815272,1750469453756,-199.61,0.00026676,2]
[366815273,1750469453766,-207.974648,0.00026694,4]
[366815274,1750469453776,-889.418919,0.00026694,4]
[366815275,1750469453787,-561.441691,0.00026694,4]
[366815276,1750469453797,-207.974648,0.00026704,4]
[366815277,1750469453807,-889.418919,0.00026704,4]
[366815278,1750469453816,-561.441691,0.00026704,4]
[366815279,1750469453826,-207.974648,0.00026708,4]
[366815280,1750469453835,-889.418919,0.00026708,4]
[366815281,1750469453845,-561.441691,0.00026708,4]
[366815282,1750469453858,-1000.0,0.0002671,10]
[366815283,1750469453867,-1000.0,0.0002671,10]
[366815284,1750469453877,-1000.0,0.0002671,10]
[366815285,1750469453887,-1000.0,0.0002671,10]
[366815286,1750469453897,-1000.0,0.0002671,10]
[366815287,1750469453908,-1127.73789542,0.0002671,10]
[366815288,1750469453917,-207.974648,0.00026711,4]
[366815289,1750469453927,-889.418919,0.00026711,4]
[366815290,1750469453937,-561.441691,0.00026711,4]
[366815291,1750469453947,-207.974648,0.00026714,4]
[366815292,1750469453957,-889.418919,0.00026714,4]
[366815293,1750469453967,-561.441691,0.00026714,4]
[366815294,1750469453976,-207.974648,0.00026715,4]
[366815295,1750469453986,-889.418919,0.00026715,4]
[366815296,1750469453996,-561.441691,0.00026715,4]
[366815297,1750469454007,-200.0,0.00026765,2]
[366815298,1750469454017,-168.0,0.00026777,2]
[366815299,1750469454028,-1236.4532289,0.00026831,15]
[366815300,1750469454039,-500.0,0.00026838,2]
[366815301,1750469454049,-205.0,0.00026839,8]
[366815302,1750469454059,-490.0,0.00026845,4]
[366815303,1750469454070,-490.0,0.00026845,4]
[366815304,1750469454080,-490.0,0.00026845,4]
[366815305,1750469454091,-490.0,0.00026845,4]
[366815306,1750469454101,-490.0,0.00026845,4]
[366815307,1750469454111,-490.0,0.00026845,4]
[366815308,1750469454122,-490.0,0.00026845,4]
[366815309,1750469454132,-490.0,0.00026845,4]
[366815310,1750469454141,-490.0,0.00026845,4]
[366815311,1750469454152,-490.0,0.00026845,4]
[366815312,1750469454162,-490.0,0.00026845,4]
[366815313,1750469454172,-490.0,0.00026845,4]
[366815314,1750469454183,-490.0,0.00026845,4]
[366815315,1750469454193,-490.0,0.00026845,4]
[366815316,1750469454203,-490.0,0.00026845,4]
[366815317,1750469454213,-490.0,0.00026845,4]
[366815318,1750469454223,-490.0,0.00026845,4]
[366815319,1750469454234,-490.0,0.00026845,4]
[366815320,1750469454244,-490.0,0.00026845,4]
[366815321,1750469454254,-490.0,0.00026845,4]
[366815322,1750469454264,-490.0,0.00026845,4]
[366815323,1750469454275,-490.0,0.00026845,4]
[366815324,1750469454285,-490.0,0.00026845,4]
[366815325,1750469454295,-490.0,0.00026845,4]
[366815326,1750469454304,-812.69,0.00026845,4]
[366815327,1750469454314,-490.0,0.00026845,4]
[366815328,1750469454324,-490.0,0.00026845,4]
[366815329,1750469454334,-936.43,0.00026845,4]
[366815330,1750469454344,-490.0,0.00026845,4]
[366815331,1750469454354,-490.0,0.00026845,4]
[366815332,1750469454364,-543.41,0.00026845,4]
[366815333,1750469454373,-807.15,0.00026845,4]
[366815334,1750469454383,-2874.37,0.00026845,4]
[366815335,1750469454393,-747.94,0.00026845,4]
[366815336,1750469454403,-490.0,0.00026845,4]
[366815337,1750469454413,-490.0,0.00026845,4]
[366815338,1750469454424,-490.0,0.00026845,4]
[366815339,1750469454434,-490.0,0.00026845,4]
[366815340,1750469454444,-205.68402806,0.00026845,4]
[366815341,1750469454455,-490.0,0.00026845,4]
[366815342,1750469454465,-490.0,0.00026845,4]
[366815343,1750469454474,-490.0,0.00026845,4]
[366815344,1750469454485,-350.4,0.00026845,4]
[366815345,1750469454495,-260.20818662,0.00026845,4]
[366815346,1750469454506,-490.0,0.00026845,4]
[366815347,1750469454516,-1437.46,0.00026845,4]
[366815348,1750469454527,-490.0,0.00026845,4]
[366815349,1750469454537,-490.0,0.00026845,4]
[366815350,1750469454547,-712.82,0.00026845,4]
[366815351,1750469454559,-490.0,0.00026845,4]
[366815352,1750469454569,-576.17,0.00026845,4]
[366815353,1750469454579,-490.0,0.00026845,4]
[366815354,1750469454589,-526.92,0.00026845,4]
[366815355,1750469454599,-490.0,0.00026845,4]
[366815356,1750469454609,-490.0,0.00026845,4]
[366815357,1750469454619,-490.0,0.00026845,4]
[366815358,1750469454629,-490.0,0.00026845,4]
[366815359,1750469454640,-490.0,0.00026845,4]
[366815360,1750469454650,-493.52,0.00026845,4]
[366815361,1750469454660,-490.0,0.00026845,4]
[366815362,1750469454670,-490.0,0.00026845,4]
[366815363,1750469454680,-490.0,0.00026845,4]
[366815364,1750469454690,-490.0,0.00026845,4]
[366815365,1750469454700,-490.0,0.00026845,4]
[366815366,1750469454709,-591.78,0.00026845,4]
[366815367,1750469454720,-490.0,0.00026845,4]
[366815368,1750469454730,-490.0,0.00026845,4]
[366815369,1750469454740,-490.0,0.00026845,4]
[366815370,1750469454750,-490.0,0.00026845,4]
[366815371,1750469454760,-956.83,0.00026845,4]
[366815372,1750469454769,-575.79,0.00026845,4]
[366815373,1750469454779,-490.0,0.00026845,4]
[366815374,1750469454788,-490.0,0.00026845,4]
[366815375,1750469454798,-490.0,0.00026845,4]
[366815376,1750469454807,-222.88445014,0.00026845,4]
[366815377,1750469454816,-490.0,0.00026845,4]
[366815378,1750469454826,-490.0,0.00026845,4]
[366815379,1750469454835,-490.0,0.00026845,4]
[366815380,1750469454846,-1272.16,0.00026845,2]
[366815381,1750469454859,-490.0,0.00026845,4]
[366815382,1750469454868,-490.0,0.00026845,4]
[366815383,1750469454878,-490.0,0.00026845,4]
[366815384,1750469454888,-490.0,0.00026845,4]
[366815385,1750469454899,-490.0,0.00026845,4]
[366815386,1750469454908,-490.0,0.00026845,4]
[366815387,1750469454918,-490.0,0.00026845,4]
[366815388,1750469454928,-547.86,0.00026845,4]
[366815389,1750469454938,-490.0,0.00026845,4]
[366815390,1750469454948,-490.0,0.00026845,4]
[366815391,1750469454958,-490.0,0.00026845,4]
[366815392,1750469454969,-490.0,0.00026845,4]
[366815393,1750469454979,-778.02,0.00026845,4]
[366815394,1750469454989,-490.0,0.00026845,4]
[366815395,1750469454999,-490.0,0.00026845,4]
[366815396,1750469455009,-1680.82,0.00026845,4]
[366815397,1750469455020,-610.55,0.00026845,4]
[366815398,1750469455031,-490.0,0.00026845,4]
[366815399,1750469455041,-490.0,0.00026845,4]
[366815400,1750469455051,-490.0,0.00026845,4]
[366815401,1750469455060,-543.8,0.00026845,4]
[366815402,1750469455071,-490.0,0.00026845,4]
[366815403,1750469455081,-3805.85,0.00026845,4]
[366815404,1750469455091,-490.0,0.00026845,4]
[366815405,1750469455102,-621.07,0.00026845,2]
[366815406,1750469455111,-490.0,0.00026845,4]
[366815407,1750469455122,-490.0,0.00026845,4]
[366815408,1750469455132,-1068.62,0.00026845,4]
[366815409,1750469455143,-525.68,0.00026845,4]
[366815410,1750469455153,-490.0,0.00026845,4]
[366815411,1750469455163,-755.19,0.00026845,4]
[366815412,1750469455174,-490.0,0.00026845,4]
[366815413,1750469455185,-490.0,0.00026845,4]
[366815414,1750469455195,-490.0,0.00026845,4]
[366815415,1750469455205,-490.0,0.00026845,4]
[366815416,1750469455214,-669.03,0.00026845,4]
[366815417,1750469455225,-490.0,0.00026845,4]
[366815418,1750469455235,-490.0,0.00026845,4]
[366815419,1750469455245,-490.0,0.00026846,4]
[366815420,1750469455255,-490.0,0.00026846,4]
[366815421,1750469455266,-152.82991166,0.00026846,4]
[366815422,1750469455278,-490.0,0.00026846,4]
[366815423,1750469455288,-490.0,0.00026846,4]
[366815424,1750469455298,-190.28124904,0.00026846,4]
[366815425,1750469455308,-490.0,0.00026846,4]
[366815426,1750469455318,-586.57,0.00026846,4]
[366815427,1750469455328,-178.91,0.00026846,4]
[366815428,1750469455338,-490.0,0.00026846,4]
[366815429,1750469455348,-490.0,0.00026847,4]
[366815430,1750469455358,-159.49377612,0.00026899,2]
[366815431,1750469455368,-1200.0,0.000269,9]
[366815432,1750469455378,-151.10157197,0.00026912,2]
[366815433,1750469455388,-202.52761667,0.00026921,2]
[366815434,1750469455398,-275.92,0.00026922,120]
[366815435,1750469455408,-164.3,0.00026967,2]
[366815436,1750469455418,-150.0,0.00027,2]
[366815437,1750469455428,-400.0,0.00027,2]
[366815438,1750469455439,-223.0315306,0.00027046,2]
[366815439,1750469455449,-168.0,0.00027096,2]
[366815440,1750469455459,-330.43,0.00027105,120]
[366815441,1750469455469,-490.0,0.00027119,4]
[366815442,1750469455479,-490.0,0.00027119,4]
[366815443,1750469455488,-490.0,0.00027119,4]
[366815444,1750469455498,-490.0,0.00027119,4]
[366815445,1750469455509,-309.73613412,0.00027119,4]
[366815446,1750469455519,-490.0,0.00027119,4]
[366815447,1750469455528,-490.0,0.00027119,4]
[366815448,1750469455538,-490.0,0.00027119,4]
[366815449,1750469455547,-490.0,0.00027119,4]
[366815450,1750469455557,-490.0,0.00027119,4]
[366815451,1750469455567,-490.0,0.00027119,4]
[366815452,1750469455577,-560.89267198,0.00027119,4]
[366815453,1750469455586,-490.0,0.00027119,4]
[366815454,1750469455596,-483.40622978,0.00027119,4]
[366815455,1750469455606,-490.0,0.00027119,4]
[366815456,1750469455616,-490.0,0.00027119,4]
[366815457,1750469455625,-490.0,0.00027119,4]
[366815458,1750469455635,-490.0,0.00027119,4]
[366815459,1750469455646,-490.0,0.00027119,4]
[366815460,1750469455655,-490.0,0.00027119,4]
[366815461,1750469455665,-490.0,0.00027119,4]
[366815462,1750469455675,-490.0,0.00027119,4]
[366815463,1750469455685,-490.0,0.00027119,4]
[366815464,1750469455694,-367.21166671,0.00027119,4]
[366815465,1750469455704,-812.69,0.00027119,4]
[366815466,1750469455714,-490.0,0.00027119,4]
[366815467,1750469455723,-490.0,0.00027119,4]
[366815468,1750469455733,-936.43,0.00027119,4]
[366815469,1750469455743,-490.0,0.00027119,4]
[366815470,1750469455752,-490.0,0.00027119,4]
[366815471,1750469455762,-543.41,0.00027119,4]
[366815472,1750469455772,-807.15,0.00027119,4]
[366815473,1750469455782,-2874.37,0.00027119,4]
[366815474,1750469455791,-747.94,0.00027119,4]
[366815475,1750469455801,-490.0,0.00027119,4]
[366815476,1750469455811,-490.0,0.00027119,4]
[366815477,1750469455821,-490.0,0.00027119,4]
[366815478,1750469455831,-274.93985765,0.00027119,4]
[366815479,1750469455841,-490.0,0.00027119,4]
[366815480,1750469455850,-490.0,0.00027119,4]
[366815481,1750469455864,-490.0,0.00027119,4]
[366815482,1750469455874,-490.0,0.00027119,4]
[366815483,1750469455884,-1437.46,0.00027119,4]
[366815484,1750469455893,-490.0,0.00027119,4]
[366815485,1750469455903,-490.0,0.00027119,4]
[366815486,1750469455913,-712.82,0.00027119,4]
[366815487,1750469455923,-490.0,0.00027119,4]
[366815488,1750469455932,-576.17,0.00027119,4]
[366815489,1750469455942,-156.56330161,0.00027119,4]
[366815490,1750469455952,-526.92,0.00027119,4]
[366815491,1750469455961,-490.0,0.00027119,4]
[366815492,1750469455971,-209.99562379,0.00027119,4]
[366815493,1750469455980,-490.0,0.00027119,4]
[366815494,1750469455990,-490.0,0.00027119,4]
[366815495,1750469455999,-490.0,0.00027119,4]
[366815496,1750469456076,-490.0,0.00027119,4]
[366815497,1750469456085,-490.0,0.00027119,4]
[366815498,1750469456095,-490.0,0.00027119,4]
[366815499,1750469456104,-490.0,0.00027119,4]
[366815500,1750469456114,-490.0,0.00027119,4]
[366815501,1750469456123,-591.78,0.00027119,4]
[366815502,1750469456133,-490.0,0.00027119,4]
[366815503,1750469456142,-490.0,0.00027119,4]
[366815504,1750469456151,-490.0,0.00027119,4]
[366815505,1750469456161,-490.0,0.00027119,4]
[366815506,1750469456170,-956.83,0.00027119,4]
[366815507,1750469456179,-575.79,0.00027119,4]
[366815508,1750469456189,-490.0,0.00027119,4]
[366815509,1750469456197,-490.0,0.00027119,4]
[366815510,1750469456207,-490.0,0.00027119,4]
[366815511,1750469456217,-490.0,0.00027119,4]
[366815512,1750469456226,-490.0,0.00027119,4]
[366815513,1750469456236,-490.0,0.00027119,4]
[366815514,1750469456246,-1272.16,0.00027119,2]
[366815515,1750469456256,-364.13,0.00027119,4]
[366815516,1750469456265,-490.0,0.00027119,4]
[366815517,1750469456275,-490.0,0.00027119,4]
[366815518,1750469456285,-490.0,0.00027119,4]
[366815519,1750469456294,-490.0,0.00027119,4]
[366815520,1750469456305,-490.0,0.00027119,4]
[366815521,1750469456315,-490.0,0.00027119,4]
[366815522,1750469456324,-547.86,0.00027119,4]
[366815523,1750469456334,-490.0,0.00027119,4]
[366815524,1750469456343,-490.0,0.00027119,4]
[366815525,1750469456353,-490.0,0.00027119,4]
[366815526,1750469456363,-490.0,0.00027119,4]
[366815527,1750469456373,-778.02,0.00027119,4]
[366815528,1750469456383,-490.0,0.00027119,4]
[366815529,1750469456393,-490.0,0.00027119,4]
[366815530,1750469456403,-1680.82,0.00027119,4]
[366815531,1750469456413,-610.55,0.00027119,4]
[366815532,1750469456423,-490.0,0.00027119,4]
[366815533,1750469456433,-490.0,0.00027119,4]
[366815534,1750469456443,-490.0,0.00027119,4]
[366815535,1750469456453,-543.8,0.00027119,4]
[366815536,1750469456463,-490.0,0.00027119,4]
[366815537,1750469456473,-3805.85,0.00027119,4]
[366815538,1750469456483,-490.0,0.00027119,4]
[366815539,1750469456493,-621.07,0.00027119,2]
[366815540,1750469456503,-490.0,0.00027119,4]
[366815541,1750469456513,-490.0,0.00027119,4]
[366815542,1750469456523,-1068.62,0.00027119,4]
[366815543,1750469456533,-525.68,0.00027119,4]
[366815544,1750469456544,-490.0,0.00027119,4]
[366815545,1750469456553,-755.19,0.00027119,4]
[366815546,1750469456565,-383.61813708,0.00027119,4]
[366815547,1750469456575,-490.0,0.00027119,4]
[366815548,1750469456584,-490.0,0.00027119,4]
[366815549,1750469456594,-490.0,0.00027119,4]
[366815550,1750469456605,-669.03,0.00027119,4]
[366815551,1750469456615,-490.0,0.00027119,4]
[366815552,1750469456626,-490.0,0.0002712,4]
[366815553,1750469456635,-490.0,0.0002712,4]
[366815554,1750469456645,-490.0,0.0002712,4]